Cogmind - Beta 11.1 @@@ ROGUE MODE // 2022.09.30 @ 21:43:39 Player: DuckBoy Result: Destroyed by H-55 Commando with Gauss Rifle Performance ------------- Evolutions (2) 1000 Regions Visited (3) 600 Robots Destroyed (43) 215 Value Destroyed (1190) 1190 Prototype IDs (4) 80 Alien Tech Used (0) 0 Bonus (122) 122 TOTAL SCORE: 3207 Bonus ------- High Alert Combat Kills 122 Cogmind --------- Core Integrity 0/550 Matter 300/300 Energy 100/100 System Corruption 14% Temperature Warning (333) Movement Core (100) Ox1 Location -8/Materials Parts ------- > --- POWER (1) -------- (None) > --- PROPULSION (5) --- (None) > --- UTILITY (3) ------ Small Storage Unit > --- WEAPON (2) ------- (None) > --- INVENTORY (8) ---- Hacking Suite Hacking Suite Shock Rifle Shock Rifle Datajack Peak State ------------ > --- POWER ------------ Light Nuclear Core > --- PROPULSION ------- Improved Hover Unit Gravmag System Gravmag System Gravmag System Gravmag System > --- UTILITY ---------- Small Storage Unit Hacking Suite Hacking Suite > --- WEAPON ----------- Shock Rifle Shock Rifle > --- INVENTORY -------- Ion Engine Hacking Suite Hacking Suite Shock Rifle Shock Rifle Shock Rifle Shock Rifle Datajack [Rating: 36] Favorites ----------- Power Light Nuclear Core Engine Ion Engine Power Core Light Nuclear Core Propulsion Gravmag System Treads Light Treads Leg Aluminum Leg Wheel Wheel Hover Unit Gravmag System Flight Unit Improved Flight Unit Utility Hacking Suite Device Sensor Array Storage Small Storage Unit Processor Signal Interpreter Hackware Hacking Suite Protection Reactive Plating Weapon Shock Rifle Energy Gun Shock Rifle Energy Cannon Advanced Beam Cannon Ballistic Gun Assault Rifle Launcher Missile Launcher Impact Weapon Heavy Hammer Special Melee Weapon Datajack Build | -11 -10 -9 -8 ------- Run | Scr Mat Mat Mat Slots Evolved 4 | . . 2 2 Power . | . . . . Propulsion 3 | . . 2 1 Utility 1 | . . . 1 Weapon . | . . . . Parts Attached 77 | 6 12 21 38 Power 13 | 1 4 3 5 Engine 11 | 1 4 3 3 Core 2 | . . . 2 Reactor . | . . . . Propulsion 33 | 2 3 14 14 Treads 3 | . . . 3 Leg 2 | . 2 . . Wheel 5 | 2 1 . 2 Hover 22 | . . 14 8 Flight 1 | . . . 1 Utility 9 | 1 2 1 5 Device 2 | . 1 . 1 Storage 3 | 1 . 1 1 Processor 1 | . 1 . . Hackware 2 | . . . 2 Protection 1 | . . . 1 Artifact . | . . . . Weapon 22 | 2 3 3 14 Energy Gun 13 | 1 1 2 9 Energy Cannon 1 | . . . 1 Ballistic Gun 5 | 1 2 . 2 Ballistic Cannon . | . . . . Launcher 1 | . . . 1 Special Weapon . | . . . . Impact Weapon 1 | . . 1 . Slashing Weapon . | . . . . Piercing Weapon . | . . . . Special Melee Weapon 1 | . . . 1 Unidentified Prototypes 4 | . . 1 3 Corrupted Parts 4 | . . . 4 System Corruption 14 | . . . 14 Parts Lost 32 | . 3 7 22 Power 5 | . 1 1 3 Propulsion 16 | . 1 5 10 Utility 3 | . . . 3 Weapon 8 | . 1 1 6 Highest Loss Streak 16 | . 3 3 16 To Critical Strikes . | . . . . Average Slot Usage (%) 84 | . 93 75 82 Engine 5 | . 13 9 . Core 3 | . . . 6 Leg 1 | . 2 6 . Wheel 6 | . 23 . . Hover 22 | . . 27 31 Device 4 | . 13 3 . Storage 6 | . . 7 8 Processor 5 | . 13 11 . Hackware 9 | . . . 16 Energy Gun 10 | . 10 5 12 Ballistic Gun 4 | . 14 2 . Impact Weapon 1 | . . . 2 Naked Turns . | . . . . Heaviest Build 21 | 14 15 15 21 Greatest Support 60 | 20 20 28 60 Greatest Overweight (x) 4 | . . 1 4 Average Overweight (x) . | . . . . Largest Inventory Capacity 8 | 8 8 8 8 Average Capacity 7 | 7 5 6 7 Most Carried 8 | . 5 8 8 Average Carried 5 | . 3 6 6 Final Capacity 8 | 8 5 8 8 Final Carried 5 | . 5 5 5 Class Distribution -------------------- 50% | Hacker-Mutant 49% | Mutant Dominant Class ---------------- Mutant | -10/Materials Mutant | -9/Materials Hacker-Mutant | -8/Materials Resources | -11 -10 -9 -8 ----------- Run | Scr Mat Mat Mat Matter Collected 1002 | 250 210 128 414 Remotely . | . . . . Salvage Created 1929 | . 382 187 1360 Parts 115 | . 24 16 75 Haulers Intercepted 3 | . . . 3 Recyclers Shooed 3 | . . 1 2 Parts Field Recycled . | . . . . Retrieved Matter . | . . . . Parts Self-Destructed . | . . . . Prevented . | . . . . Kills | -11 -10 -9 -8 ------- Run | Scr Mat Mat Mat Combat Hostiles Destroyed 27 | . 7 4 16 Guns 22 | . 7 4 11 Classes Destroyed 11 | . 5 1 5 Worker 1 | . . . 1 Builder 2 | . 1 . 1 Hauler 3 | . . . 3 Recycler 3 | . 1 1 1 Operator 3 | . 2 . 1 Watcher 4 | . . . 4 Swarmer 6 | . 3 3 . Grunt 13 | . 4 . 9 Duelist 1 | . . . 1 Sentry 6 | . . 1 5 Hunter 1 | . . . 1 Best Kill Streak 7 | . 5 4 7 Combat Bots Only 6 | . 3 3 6 Max Kills in Single Turn 2 | . 2 1 2 Gunslinging 1 | . . . 1 Exploded . | . . . . Melee . | . . . . Uniques/NPCs Destroyed . | . . . . Combat | -11 -10 -9 -8 -------- Run | Scr Mat Mat Mat Damage Taken 3039 | . 308 680 2051 Core 806 | . 94 160 552 Absorbed by Shields . | . . . . Core Remaining (%) 74 | 100 62 60 . Volleys Fired 128 | . 35 14 79 Largest 2 | . 2 2 2 Hottest 100 | . 70 65 100 Shots Fired 204 | . 61 15 128 Gun 204 | . 61 15 128 Cannon . | . . . . Launcher . | . . . . Special . | . . . . Kinetic 44 | . 35 2 7 Thermal 26 | . 26 . . Explosive . | . . . . Electromagnetic 134 | . . 13 121 Robot Hit Streak 15 | . 7 7 15 Robot Miss Streak 7 | . 5 5 7 Penetration Max . | . . . . Secondary Targets 4 | . 3 . 1 Max Gunslinging Chain 1 | . 1 . 1 Shots Hit Robots 127 | . 35 12 80 Core Hits 65 | . 18 9 38 Critical Kills . | . . . . Critical Parts Destroyed 2 | . . . 2 Critical Strikes 2 | . . . 2 Smash 2 | . . . 2 Melee Attacks 14 | . . 2 12 Impact 14 | . . 2 12 Slashing . | . . . . Piercing . | . . . . Sneak Attacks . | . . . . Combat Hostiles . | . . . . Follow-up Attacks . | . . . . Damage Inflicted 2749 | . 482 326 1941 Guns 2232 | . 482 222 1528 Cannons . | . . . . Explosions 199 | . . 100 99 Melee 314 | . . . 314 Ramming 4 | . . 4 . Kinetic 398 | . 269 13 116 Thermal 412 | . 213 100 99 Explosive . | . . . . Electromagnetic 1621 | . . 209 1412 Impact 314 | . . . 314 Slashing . | . . . . Piercing . | . . . . Highest Corruption 14 | . . . 14 Average Corruption 3 | . . . 3 Corruption Purged . | . . . . Corruption Blocked . | . . . . Effects 15 | . . . 15 Message Errors 5 | . . . 5 Matter Fused 4 | . . . 4 Heat Flow Errors 1 | . . . 1 Energy Discharges 1 | . . . 1 Parts Rejected 1 | . . . 1 Data Loss (minor) 1 | . . . 1 Data Loss (major) 1 | . . . 1 Weapon Failures 1 | . . . 1 Overload Shots . | . . . . Overflow Damage 115 | . . . 115 Projectiles . | . . . . Explosions 13 | . . . 13 Melee 102 | . . . 102 Knockbacks . | . . . . Impact . | . . . . Kinetic . | . . . . Secondary . | . . . . Self-Inflicted Damage 70 | . . 32 38 Shots 2 | . . 1 1 Rammed 1 | . . 1 . Targets Rammed 1 | . . 1 . Kicked . | . . . . Crushed . | . . . . Highest Temperature 322 | . 128 30 322 Average Temperature 93 | . 35 18 112 Received Heat Transfer 1395 | . 114 174 1107 Effects 5 | . . . 5 Energy Bleed 1 | . . . 1 Interference 4 | . . . 4 Siege Activations . | . . . . Robots Corrupted 3 | . . . 3 Combat Hostiles 3 | . . . 3 Parts Fried 9 | . . . 9 Impact Corruptions 4 | . . . 4 Robots Melted . | . . . . Combat Hostiles . | . . . . Parts Melted 1 | . 1 . . Heat Transferred 879 | . 629 150 100 Parts Sabotaged . | . . . . Parts Stolen . | . . . . Parts Stripped . | . . . . Power Chain Reactions 3 | . . 1 2 Missiles Intercepted . | . . . . Alert | -11 -10 -9 -8 ------- Run | Scr Mat Mat Mat Peak Influence 611 | . 188 388 611 Initial 163 | . . 79 163 Average 269 | . 103 186 383 Maximum Alert Level 2 | . . 1 2 Low Security (%) 44 | 100 100 60 12 Level 1 27 | . . 39 38 Level 2 27 | . . . 49 Level 3 . | . . . . Level 4 . | . . . . Level 5 . | . . . . High Security . | . . . . Max Security . | . . . . Squads Dispatched 8 | . 2 1 5 Investigation 2 | . . . 2 Extermination . | . . . . Reinforcement 6 | . 2 1 3 Assault . | . . . . Garrison . | . . . . Intercept . | . . . . Searches Triggered 1 | . . . 1 Construction Impeded 2 | . . 1 1 Haulers Reinforced . | . . . . Active Scanning Responses . | . . . . Cargo Convoy Interrupts . | . . . . Stealth | -11 -10 -9 -8 --------- Run | Scr Mat Mat Mat Distress Signals 8 | . . 2 6 Communications Jammed . | . . . . Distress Signals . | . . . . Times Spotted 92 | . 13 24 55 Peak Tracking Total 11 | . 4 11 7 Tactical Retreats 15 | . . 4 11 Traps | -11 -10 -9 -8 ------- Run | Scr Mat Mat Mat Traps Triggered 7 | . 2 4 1 Indirectly . | . . . . Trap Hack Attempts 10 | . . . 10 Triggered . | . . . . Disarmed 1 | . . . 1 Reprogrammed 3 | . . . 3 Reused 3 | . . . 3 Traps Extracted . | . . . . Installed . | . . . . Triggered 3 | . . . 3 Machines | -11 -10 -9 -8 ---------- Run | Scr Mat Mat Mat Machines Disabled . | . . . . Max in Single Turn . | . . . . Machines Sabotaged . | . . . . Garrisons Compromised . | . . . . Overloaded Fab Kills . | . . . . Hacking | -11 -10 -9 -8 --------- Run | Scr Mat Mat Mat Machines Accessed 8 | . 1 2 5 Terminals 8 | . 1 2 5 Fabricators . | . . . . Repair Stations . | . . . . Recycling Units . | . . . . Scanalyzers . | . . . . Garrison Access . | . . . . Total Hacks 26 | . 2 7 17 Successful 11 | . 1 3 7 Failed 15 | . 1 4 10 Catastrophic 5 | . 1 1 3 Database Lockouts . | . . . . Manual 13 | . 1 2 10 Terminals 26 | . 2 7 17 Fabricators . | . . . . Repair Stations . | . . . . Recycling Units . | . . . . Scanalyzers . | . . . . Garrison Access . | . . . . Terminal Hacks 9 | . 1 3 5 Part Schematic 1 | . . 1 . Branch Access Points 1 | . . . 1 Terminal Index 1 | . 1 . . Alert Level 1 | . . . 1 Unreport Threat 2 | . . . 2 Locate Traps 1 | . . 1 . Recall Reinforcements 1 | . . . 1 Zone Layout 1 | . . 1 . Fabricator Hacks . | . . . . Repair Station Hacks . | . . . . Recycling Unit Hacks . | . . . . Scanalyzer . | . . . . Garrison Access Hacks . | . . . . Unauthorized Hacks 2 | . . . 2 Terminals 2 | . . . 2 Assimilate 1 | . . . 1 Operators 1 | . . . 1 Fabricators . | . . . . Repair Stations . | . . . . Recycling Units . | . . . . Scanalyzers . | . . . . Garrison Access . | . . . . Data Cores Recovered . | . . . . Used . | . . . . Hacking Detections 8 | . 1 2 5 Full Trace Events 1 | . . . 1 Feedback Events . | . . . . Feedback Blocked . | . . . . Robot Schematics Acquired . | . . . . Robots Built . | . . . . Authchips . | . . . . Time . | . . . . Total Robot Build Rating . | . . . . Part Schematics Acquired 1 | . . 1 . Parts Built . | . . . . Authchips . | . . . . Time . | . . . . Total Part Build Rating . | . . . . Parts Repaired . | . . . . Time . | . . . . Parts Recycled . | . . . . Recycled Matter . | . . . . Retrieved Matter . | . . . . Retrieved Components . | . . . . Parts Scanalyzed . | . . . . Part Schematics Acquired . | . . . . Parts Damaged . | . . . . Bothacking | -11 -10 -9 -8 ------------ Run | Scr Mat Mat Mat Used RIF Installer . | . . . . Robots Hacked . | . . . . Non-combat . | . . . . Combat . | . . . . Robot Hacks Applied . | . . . . Relay Couplers Released . | . . . . Fabnet Peak Effective % . | . . . . Robots Rewired . | . . . . Allies Hacked . | . . . . Hacks Repelled . | . . . . Allies | -11 -10 -9 -8 -------- Run | Scr Mat Mat Mat Total Allies 1 | . . . 1 Largest Group 1 | . . . 1 Highest-Rated Group 10 | . . . 10 Highest-Rated Ally 10 | . . . 10 Total Orders . | . . . . Ally Attacks . | . . . . Total Damage . | . . . . Kills . | . . . . Allies Corrupted . | . . . . Allies Melted . | . . . . Intel | -11 -10 -9 -8 ------- Run | Scr Mat Mat Mat Robot Analysis Total . | . . . . Derelict Logs Recovered . | . . . . Drone Launches . | . . . . Drone Recoveries . | . . . . Exploration | -11 -10 -9 -8 ------------- Run | Scr Mat Mat Mat Turns Passed 1486 | 47 357 259 823 Spaces Moved 1291 | 49 247 283 712 Core 5 | 3 . . 2 Treads 18 | . . . 18 Legs 95 | . 43 52 . Wheels 273 | 46 204 . 23 Hover 900 | . . 231 669 Flight . | . . . . Fastest Speed 44 | 50 80 48 44 Average Speed 63 | 78 86 62 54 Slowest Speed 250 | 80 120 190 250 Overloaded Moves . | . . . . Propulsion Burnouts . | . . . . Robots Hopped . | . . . . Cave-ins Triggered . | . . . . Exploration Rate (%) 30 | 2 46 36 39 Regions Visited 3 Branch Regions . Pre-discovered Areas . | . . . . Known Exits Taken 2 | . 1 1 . Unknown Exits Taken 1 | 1 . . . Scrap Searched . | . . . . Spaces Dug 3 | . . 2 1 Terrain Destroyed 21 | . . 4 17 Melee 3 | . . 2 1 Projectile . | . . . . AOE 18 | . . 2 16 Terrain Rammed . | . . . . Walls Destroyed . | . . . . Machines Disabled . | . . . . Actions | -11 -10 -9 -8 --------- Run | Scr Mat Mat Mat Total 1710 | 54 323 341 992 Wait 145 | . 22 11 112 Move 1288 | 48 246 282 712 Hop . | . . . . Pick Up 27 | . 6 6 15 Fast Attach 47 | 6 9 11 21 Attach 15 | . 1 6 8 Detach . | . . . . Swap 15 | . 2 4 9 Drop 20 | . 2 4 14 Fire 128 | . 35 14 79 Melee 14 | . . 2 12 Ram 1 | . . 1 . Kick . | . . . . Crush . | . . . . Escape Stasis . | . . . . Rewire . | . . . . Trap 10 | . . . 10 Miscellaneous . | . . . . Route ------- -11/Scrapyard -10/Materials (discovered 2 exits: *Mat x2) -9/Materials -8/Materials History --------- Turn | Location | Event 2 | -11/Scrapyard | Met Revision 17 16 | -11/Scrapyard | Discovered new exit (range 16) 48 | -11/Scrapyard | Entered Materials 189 | -10/Materials | Discovered new exit (range 12) 228 | -10/Materials | Discovered new exit (range 7) 303 | -10/Materials | Build established: Mutant 360 | -10/Materials | Lost 3 parts (1p1n1w) 403 | -10/Materials | Identified exit to Materials 405 | -10/Materials | Entered another Materials area 405 | -9/Materials | Evolved 2 slots: Propulsion x2 661 | -9/Materials | Discovered new exit (range 6) 663 | -9/Materials | Identified exit to Materials 664 | -9/Materials | Entered another Materials area 664 | -8/Materials | Evolved 2 slots: Propulsion x1, Utility x1 680 | -8/Materials | Lost 3 parts (1p2n) 997 | -8/Materials | Build established: Hacker-Mutant 1429 | -8/Materials | Core integrity fell below 50% 1448 | -8/Materials | System corruption reached 10% 1464 | -8/Materials | Search patrols dispatched 1483 | -8/Materials | Core integrity fell below 20% 1487 | -8/Materials | Destroyed by H-55 Commando with Gauss Rifle Last Messages --------------- 01461_ Critical hit (Burn: +37). 01462_ U-05 Engineer lays Concrete. 01463_ System corrupted: Matter fused (-7). 01463_ U-05 Engineer lays Concrete. 01464_ ALERT: Heightened foreign activity detected, multiple search patrols dispatched. 01465_ U-05 Engineer lays Concrete. 01466_ Acquired 54 matter. 01467_ U-05 Engineer lays Concrete. 01472_ Acquired Imp. Ion Engine. 01474_ Lgt. Treads destroyed. 01478_ Critical hit (Burn: +37). 01481_ Lgt. Treads destroyed. 01483_ Heat Sink destroyed. 01484_ Acquired Missile Launcher. 01484_ Penetrated by Slug. 01485_ System corrupted: Heat flow error (+293). 01485_ Critical hit (Burn: +37). 01485_ Missile Launcher destroyed. 01487_ Imp. Ion Engine destroyed. Map ----- +----------------------------------------------------+ | ????????????????????????????###########??????????? | | ????????????????????????????# "T"/ ! #??????????? | | ??????????????????########### [[ !#?????????## | | ??????????????????# # #?????????# | | ????############### #! !#?????##### | | ????# # # ####+############ # | | ????# """" #! # #### + | | ????# """" # """ # ## # ###### # | | ????# """" # """ # #### #????##### | | ????# # """ # ## # ##+##+####?????## | | ????# #? # #### # #??????? | | ########+######+#+####+######### # """#??????? | | % =% # ! """#??????? | | %=]! * + """#??????? | | !]]]! # #??????? | | #+#######]%%###################### " " #??????? | | #*]=# !#????????????# "Y" #??????? | | " #[=[# ! #????????????# """ ! #??????? | | " #!*%+! #????????????# #??????? | | " #!!=#* % #???????????###########??????? | | ! #%[%# #??????????##???????????????? | | #########]!%##########?########??########????????? | | ????????#] ############ [ !#??# #????????? | | ????#####= # ## T #### ] #????????? | | ????#!! =%! # """ """ ## /g + #????????? | | ????#!! # """ """ ## @ # ## #????????? | | ????#!! # """ """ ## ]] g;g## "T" #????????? | | ????#!! + # ]] ! g[;# #????????? | | ????# % # ! * #######;%g;####+#######????? | | ????# # ! #?????##gh[ %!%[! #????? | | ????#####%! # #?????# #% %[==!* #????? | | ????????#! ###########?????####==*=%%= #????? | | ?######## #???##?????????????# [*#u#### #????? | | #??# #??#????????##""###+#""# #????? | | ?####### #?? #??????# =%|* "?? #????? | | ???????# #?""" [ #??????# "# ##???? | | ???????# #?""" #??????# " ###+? | | ???????# # """ #??????# # | | ???????# # % """#??????# + | | ???????# + !!!! R"#??????# %= # ! | | #####??# # !!! """#??????# [ # #???? | | ?# # !! #??????# ####??????? | | ?# ###########??????#######+###?????????? | | # ##################### #?????????? | | # % * *%= = #?????????? | | / % =% = [% #?????????? | | # ! #?????????? | | # ^ ################# #?????????? | | ?## !% ##??????????????#######?????????? | | ?## % "#??????????????????????????????? | +----------------------------------------------------+ Best States ------------- Heat Dissipation 41 Energy Generation 14 Energy Capacity 265 Matter Stores 300 Matter Capacity 300 Sight Range 16 Robot Scan Range 14 Terrain Scan Density 10 Armor Coverage 150 Resistance: KI 20 Evasion (%) 56 Recoil Reduction 3 Offensive Hacking 20 Item Schematics ----------------- Imp. Hover Unit | -9/Materials | Hacked Robot Schematics ------------------ None Fabricated ------------ Nothing Alien Tech Used ----------------- None Achievements -------------- None Challenges ------------ None Game ------ Seed FlyingHeavySabre Manual? 0 Play Time 00:22:45 Cumulative 185.5 hours Start 2022.09.30 @ 21:18:52 End 2022.09.30 @ 21:43:39 Sessions 1 Manual Loads 0 Difficulty Rogue Special Mode None Game No. 143 Rogue 140 Adventurer 3 Explorer 0 Win Type - Total 1 Types 1/0/0/0/0/0/0/0/0 Lore% 58 Gallery% 61 Achievement% 51 Wizard Run 0 Options --------- ASCII 0 Keyboard 0 Movement Numpad Keybinds 0 Fullscreen 1 Font 18/SmallcapsGlow Map View 76x50 Tactical HUD 1 Map Filters NONE Filters NONE Steam 1 RUN: 5a5a2395-cce8-4767-be21-46324e895496